fUSD/lending_fUSD_20250515
["ID","MTS","AMOUNT","RATE_DAILY","PERIOD"]
[361157632,1747312257434,-400.0,0.00012144,2]
[361157633,1747312257445,-400.0,0.00012144,2]
[361157634,1747312257456,-400.0,0.00012144,2]
[361157635,1747312257474,-252.56,0.00012144,2]
[361157636,1747312257484,-400.0,0.00012144,2]
[361157637,1747312257496,-151.0,0.00012144,2]
[361157638,1747312257508,-400.0,0.00012144,2]
[361157639,1747312257519,-400.0,0.00012144,2]
[361157640,1747312257530,-400.0,0.00012144,2]
[361157641,1747312257541,-448.46,0.00012144,2]
[361157642,1747312257551,-151.75625116,0.00012144,2]
[361157643,1747312257562,-400.0,0.00012144,2]
[361157644,1747312257573,-400.0,0.00012144,2]
[361157645,1747312257583,-196.72,0.00012144,2]
[361157646,1747312257596,-371.46931269,0.00012144,2]
[361157647,1747312257606,-400.0,0.00012144,2]
[361157648,1747312257617,-400.0,0.00012144,2]
[361157649,1747312257627,-400.0,0.00012144,2]
[361157650,1747312257638,-170.04856366,0.00012144,2]
[361157651,1747312257649,-400.0,0.00012144,2]
[361157652,1747312257659,-400.0,0.00012144,2]
[361157653,1747312257670,-400.0,0.00012144,2]
[361157654,1747312257681,-400.0,0.00012144,2]
[361157655,1747312257692,-572.49,0.00012144,2]
[361157656,1747312257925,-400.0,0.00012144,2]
[361157657,1747312257940,-400.0,0.00012144,2]
[361157658,1747312257951,-455.44,0.00012144,2]
[361157659,1747312257960,-545.88,0.00012144,2]
[361157660,1747312257969,-400.0,0.00012144,2]
[361157661,1747312257978,-400.0,0.00012144,2]
[361157662,1747312257987,-400.0,0.00012144,2]
[361157663,1747312257996,-613.99,0.00012144,2]
[361157664,1747312258005,-400.0,0.00012144,2]
[361157665,1747312258015,-400.0,0.00012144,2]
[361157666,1747312258025,-559.8,0.00012144,2]
[361157667,1747312258034,-429.66,0.00012144,2]
[361157668,1747312258044,-7018.63,0.00012144,2]
[361157669,1747312258053,-472.72,0.00012144,2]
[361157670,1747312258063,-1647.57,0.00012144,2]
[361157671,1747312258072,-222.40403044,0.00012144,2]
[361157672,1747312258082,-400.0,0.00012144,2]
[361157673,1747312258094,-400.0,0.00012144,2]
[361157674,1747312258104,-400.0,0.00012144,2]
[361157675,1747312258114,-515.68,0.00012144,2]
[361157676,1747312258124,-582.36,0.00012144,2]
[361157677,1747312258134,-400.0,0.00012144,2]
[361157678,1747312258144,-400.0,0.00012144,2]
[361157679,1747312258154,-1273.86,0.00012144,2]
[361157680,1747312258164,-400.0,0.00012144,2]
[361157681,1747312258173,-707.6,0.00012144,2]
[361157682,1747312258183,-400.0,0.00012144,2]
[361157683,1747312258193,-400.0,0.00012144,2]
[361157684,1747312258203,-400.0,0.00012144,2]
[361157685,1747312258212,-400.0,0.00012144,2]
[361157686,1747312258222,-847.58,0.00012144,2]
[361157687,1747312258232,-400.0,0.00012144,2]
[361157688,1747312258243,-532.14,0.00012144,2]
[361157689,1747312258253,-364.4615125,0.00012144,2]
[361157690,1747312258262,-400.0,0.00012144,2]
[361157691,1747312258273,-400.0,0.00012144,2]
[361157692,1747312258282,-400.0,0.00012144,2]
[361157693,1747312258292,-504.34,0.00012144,2]
[361157694,1747312258306,-400.0,0.00012144,2]
[361157695,1747312258315,-400.0,0.00012144,2]
[361157696,1747312258324,-400.0,0.00012144,2]
[361157697,1747312258334,-258.38060719,0.00012144,2]
[361157698,1747312258347,-481.79,0.00012144,2]
[361157699,1747312258357,-539.45,0.00012144,2]
[361157700,1747312258367,-546.36,0.00012144,2]
[361157701,1747312258377,-400.0,0.00012144,2]
[361157702,1747312258387,-400.0,0.00012144,2]
[361157703,1747312258397,-400.0,0.00012144,2]
[361157704,1747312258407,-400.0,0.00012144,2]
[361157705,1747312258416,-400.0,0.00012144,2]
[361157706,1747312258426,-400.0,0.00012144,2]
[361157707,1747312258435,-400.0,0.00012144,2]
[361157708,1747312258445,-320.45553628,0.00012144,2]
[361157709,1747312258455,-672.34,0.00012144,2]
[361157710,1747312258465,-400.0,0.00012144,2]
[361157711,1747312258476,-400.0,0.00012144,2]
[361157712,1747312258486,-400.0,0.00012144,2]
[361157713,1747312258495,-400.0,0.00012144,2]
[361157714,1747312258505,-400.0,0.00012144,2]
[361157715,1747312258515,-400.0,0.00012144,2]
[361157716,1747312258524,-400.0,0.00012144,2]
[361157717,1747312258535,-400.0,0.00012144,2]
[361157718,1747312258545,-417.40022881,0.00012144,2]
[361157719,1747312258554,-1000.0,0.00012148,2]
[361157720,1747312258568,-1000.0,0.000122,2]
[361157721,1747312258578,-400.0,0.00012209,2]
[361157722,1747312258587,-4583.82785248,0.00012226,2]
[361157723,1747312258598,-500.0,0.00012226,2]
[361157724,1747312258608,-500.0,0.00012226,2]
[361157725,1747312258621,-500.0,0.00012226,2]
[361157726,1747312258631,-500.0,0.00012226,2]
[361157727,1747312258640,-500.0,0.00012226,2]
[361157728,1747312258650,-500.0,0.00012226,2]
[361157729,1747312258660,-500.0,0.00012226,2]
[361157730,1747312258669,-500.0,0.00012226,2]
[361157731,1747312258678,-500.0,0.00012226,2]
[361157732,1747312258687,-500.0,0.00012226,2]
[361157733,1747312258696,-500.0,0.00012226,2]
[361157734,1747312258705,-500.0,0.00012226,2]
[361157735,1747312258715,-500.0,0.00012226,2]
[361157736,1747312258723,-500.0,0.00012226,2]
[361157737,1747312258732,-500.0,0.00012226,2]
[361157738,1747312258741,-500.0,0.00012226,2]
[361157739,1747312258751,-500.0,0.00012226,2]
[361157740,1747312258759,-500.0,0.00012226,2]
[361157741,1747312258769,-500.0,0.00012226,2]
[361157742,1747312258779,-500.0,0.00012226,2]
[361157743,1747312258788,-500.0,0.00012226,2]
[361157744,1747312258798,-500.0,0.00012226,2]
[361157745,1747312258807,-500.0,0.00012226,2]
[361157746,1747312258816,-500.0,0.00012226,2]
[361157747,1747312258826,-500.0,0.00012226,2]
[361157748,1747312258835,-500.0,0.00012226,2]
[361157749,1747312258848,-500.0,0.00012226,2]
[361157750,1747312258858,-826.96,0.00012229,2]
[361157751,1747312258868,-400.0,0.00012229,2]
[361157752,1747312258877,-400.0,0.00012229,2]
[361157753,1747312258887,-1048.33,0.00012229,2]
[361157754,1747312258898,-400.0,0.00012229,2]
[361157755,1747312258908,-400.0,0.00012229,2]
[361157756,1747312258918,-400.0,0.00012229,2]
[361157757,1747312258927,-423.63,0.00012229,2]
[361157758,1747312258937,-535.8,0.00012229,2]
[361157759,1747312258946,-400.0,0.00012229,2]
[361157760,1747312258958,-185.43,0.00012229,2]
[361157761,1747312258968,-1990.2,0.00012229,2]
[361157762,1747312258979,-566.87,0.00012229,2]
[361157763,1747312258989,-436.25765087,0.00012231,2]
[361157764,1747312258999,-400.0,0.00012261,2]
[361157765,1747312259009,-400.0,0.00012261,2]
[361157766,1747312259018,-572.39,0.00012261,2]
[361157767,1747312259028,-400.0,0.00012261,2]
[361157768,1747312259038,-400.0,0.00012261,2]
[361157769,1747312259048,-400.0,0.00012261,2]
[361157770,1747312259058,-400.0,0.00012261,2]
[361157771,1747312259068,-400.0,0.00012261,2]
[361157772,1747312259077,-400.0,0.00012261,2]
[361157773,1747312259089,-475.17,0.00012261,2]
[361157774,1747312259099,-427.86,0.00012261,2]
[361157775,1747312259108,-400.0,0.00012261,2]
[361157776,1747312259117,-400.0,0.00012261,2]
[361157777,1747312259126,-400.0,0.00012261,2]
[361157778,1747312259135,-476.4,0.00012261,2]
[361157779,1747312259144,-531.85,0.00012261,2]
[361157780,1747312259152,-400.0,0.00012261,2]
[361157781,1747312259160,-421.14,0.00012261,2]
[361157782,1747312259167,-400.0,0.00012261,2]
[361157783,1747312259175,-400.0,0.00012261,2]
[361157784,1747312259182,-407.38,0.00012261,2]
[361157785,1747312259190,-400.0,0.00012261,2]
[361157786,1747312259198,-472.87,0.00012261,2]
[361157787,1747312259204,-400.0,0.00012261,2]
[361157788,1747312259213,-800.26,0.00012261,2]
[361157789,1747312259220,-400.0,0.00012261,2]
[361157790,1747312259229,-153.28,0.00012261,2]
[361157791,1747312259237,-350.38803559,0.00012261,2]
[361157792,1747312259248,-527.61,0.00012261,2]
[361157793,1747312259255,-400.0,0.00012261,2]
[361157794,1747312259265,-414.11621967,0.00012261,2]
[361157795,1747312259275,-400.0,0.00012261,2]
[361157796,1747312259284,-938.56,0.00012261,2]
[361157797,1747312259294,-400.0,0.00012261,2]
[361157798,1747312259304,-400.0,0.00012261,2]
[361157799,1747312259313,-529.49,0.00012261,2]
[361157800,1747312259323,-542.45,0.00012261,2]
[361157801,1747312259332,-413.75,0.00012261,2]
[361157802,1747312259344,-400.0,0.00012261,2]
[361157803,1747312259354,-448.35,0.00012261,2]
[361157804,1747312259364,-515.02,0.00012261,2]
[361157805,1747312259373,-920.05,0.00012261,2]
[361157806,1747312259383,-400.0,0.00012261,2]
[361157807,1747312259392,-400.0,0.00012261,2]
[361157808,1747312259402,-619.27,0.00012261,2]
[361157809,1747312259415,-546.2,0.00012261,2]
[361157810,1747312259425,-400.0,0.00012261,2]
[361157811,1747312259435,-400.0,0.00012261,2]
[361157812,1747312259445,-400.87,0.00012261,2]
[361157813,1747312259455,-400.0,0.00012261,2]
[361157814,1747312259466,-400.0,0.00012261,2]
[361157815,1747312259477,-400.0,0.00012261,2]
[361157816,1747312259488,-400.0,0.00012261,2]
[361157817,1747312259499,-457.69,0.00012261,2]
[361157818,1747312259509,-259.39750801,0.00012261,2]
[361157819,1747312259519,-704.72,0.00012261,2]
[361157820,1747312259529,-286.79,0.00012261,2]
[361157821,1747312259539,-450.0,0.00012261,2]
[361157822,1747312259549,-640.67,0.00012261,2]
[361157823,1747312259559,-400.0,0.00012261,2]
[361157824,1747312259569,-463.55,0.00012261,2]
[361157825,1747312259579,-475.16,0.00012261,2]
[361157826,1747312259589,-647.93,0.00012261,2]
[361157827,1747312259599,-493.97,0.00012261,2]
[361157828,1747312259609,-408.34,0.00012261,2]
[361157829,1747312259619,-400.0,0.00012261,2]
[361157830,1747312259628,-930.04,0.00012261,2]
[361157831,1747312259638,-584.59,0.00012261,2]
[361157832,1747312259648,-508.74,0.00012261,2]
[361157833,1747312259657,-400.0,0.00012261,2]
[361157834,1747312259667,-562.67,0.00012261,2]
[361157835,1747312259677,-587.33,0.00012261,2]
[361157836,1747312259687,-400.0,0.00012261,2]
[361157837,1747312259696,-480.35,0.00012261,2]
[361157838,1747312259706,-400.0,0.00012261,2]
[361157839,1747312259716,-1000.0,0.000123,2]
[361157840,1747312259726,-200.24,0.00012329,2]
[361157841,1747312259736,-4583.82785248,0.00012347,2]
[361157842,1747312259745,-400.0,0.00012369,2]
[361157843,1747312259755,-400.0,0.00012369,2]
[361157844,1747312259765,-1001.78300267,0.000124,2]
[361157845,1747312259775,-163.54,0.00012408,2]
[361157846,1747312259784,-469.89,0.00012416,2]
[361157847,1747312259794,-400.0,0.00012416,2]
[361157848,1747312259804,-499.13,0.00012416,2]
[361157849,1747312259813,-2415.52,0.00012416,2]
[361157850,1747312259823,-2561.98,0.00012416,2]
[361157851,1747312259832,-400.0,0.00012417,2]
[361157852,1747312259842,-400.0,0.00012417,2]
[361157853,1747312259852,-483.79,0.00012417,2]
[361157854,1747312259862,-709.94,0.00012417,2]
[361157855,1747312259872,-514.18,0.00012417,2]
[361157856,1747312259882,-400.0,0.00012417,2]
[361157857,1747312259891,-494.81,0.00012417,2]
[361157858,1747312259901,-481.22,0.00012417,2]
[361157859,1747312259911,-400.0,0.00012417,2]
[361157860,1747312259920,-419.11,0.00012417,2]
[361157861,1747312259930,-338.28241203,0.00012417,2]
[361157862,1747312259940,-624.18,0.00012417,2]
[361157863,1747312259950,-400.0,0.00012417,2]
[361157864,1747312259959,-400.0,0.00012417,2]
[361157865,1747312259969,-620.77,0.00012417,2]
[361157866,1747312259979,-400.0,0.00012417,2]
[361157867,1747312259988,-400.0,0.00012417,2]
[361157868,1747312259998,-400.0,0.00012417,2]
[361157869,1747312260007,-400.0,0.00012417,2]
[361157870,1747312260017,-400.0,0.00012417,2]
[361157871,1747312260026,-400.0,0.00012417,2]
[361157872,1747312260036,-400.0,0.00012417,2]
[361157873,1747312260046,-440.9,0.00012417,2]
[361157874,1747312260056,-1038.52,0.00012417,2]
[361157875,1747312260066,-400.0,0.00012417,2]
[361157876,1747312260076,-400.0,0.00012417,2]
[361157877,1747312260086,-881.03,0.00012417,2]
[361157878,1747312260096,-501.16,0.00012417,2]
[361157879,1747312260106,-405.48,0.00012417,2]
[361157880,1747312260115,-322.85061853,0.00012417,2]
[361157881,1747312260125,-1344.14,0.00012417,2]
[361157882,1747312260134,-451.75,0.00012417,2]
[361157883,1747312260144,-400.0,0.00012417,2]
[361157884,1747312260153,-400.0,0.00012417,2]
[361157885,1747312260162,-612.11,0.00012417,2]
[361157886,1747312260172,-462.96,0.00012417,2]
[361157887,1747312260182,-253.46,0.00012417,2]
[361157888,1747312260191,-477.75,0.00012417,2]
[361157889,1747312260200,-400.0,0.00012417,2]
[361157890,1747312260210,-400.0,0.00012417,2]
[361157891,1747312260219,-166.83,0.00012417,2]
[361157892,1747312260228,-400.0,0.00012417,2]
[361157893,1747312260238,-188.87,0.00012417,2]
[361157894,1747312260248,-439.58,0.00012417,2]
[361157895,1747312260258,-400.0,0.00012417,2]
[361157896,1747312260267,-400.0,0.00012417,2]
[361157897,1747312260276,-400.0,0.00012417,2]
[361157898,1747312260286,-576.82,0.00012417,2]
[361157899,1747312260295,-413.48,0.00012417,2]
[361157900,1747312260305,-546.12,0.00012417,2]
[361157901,1747312260315,-416.69,0.00012417,2]
[361157902,1747312260324,-505.41,0.00012417,2]
[361157903,1747312260334,-400.0,0.00012417,2]
[361157904,1747312260351,-400.0,0.00012417,2]
[361157905,1747312260361,-465.84,0.00012417,2]
[361157906,1747312260370,-151.0,0.00012417,2]
[361157907,1747312260381,-400.0,0.00012417,2]
[361157908,1747312260391,-400.0,0.00012417,2]
[361157909,1747312260401,-1045.24,0.00012417,2]
[361157910,1747312260411,-472.83,0.00012417,2]
[361157911,1747312260421,-400.0,0.00012417,2]
[361157912,1747312260431,-699.13,0.00012417,2]
[361157913,1747312260441,-999.87,0.00012417,2]
[361157914,1747312260451,-1258.7,0.00012417,2]
[361157915,1747312260460,-871.71,0.00012417,2]
[361157916,1747312260472,-400.0,0.00012417,2]
[361157917,1747312260481,-563.34,0.00012417,2]
[361157918,1747312260491,-522.13,0.00012417,2]
[361157919,1747312260500,-569.36,0.00012417,2]
[361157920,1747312260510,-467.55,0.00012417,2]
[361157921,1747312260519,-558.97,0.00012417,2]
[361157922,1747312260529,-995.06,0.00012417,2]
[361157923,1747312260538,-2978.01,0.00012417,2]
[361157924,1747312260548,-400.0,0.00012417,2]
[361157925,1747312260559,-814.79,0.00012417,2]
[361157926,1747312260570,-961.53,0.00012417,2]
[361157927,1747312260579,-400.0,0.00012417,2]
[361157928,1747312260589,-1150.65,0.00012417,2]
[361157929,1747312260604,-953.55,0.00012417,2]
[361157930,1747312260613,-945.18,0.00012417,2]
[361157931,1747312260623,-605.88,0.00012417,2]
[361157932,1747312260633,-400.0,0.00012417,2]
[361157933,1747312260643,-793.37,0.00012417,2]
[361157934,1747312260653,-400.0,0.00012417,2]
[361157935,1747312260663,-400.0,0.00012417,2]
[361157936,1747312260673,-400.0,0.00012417,2]
[361157937,1747312260682,-565.3,0.00012417,2]
[361157938,1747312260692,-3659.41,0.00012417,2]
[361157939,1747312260701,-245.88360475,0.00012417,2]
[361157940,1747312260711,-400.0,0.00012417,2]
[361157941,1747312260720,-400.0,0.00012417,2]
[361157942,1747312260730,-586.1,0.00012417,2]
[361157943,1747312260739,-866.92,0.00012417,2]
[361157944,1747312260748,-1133.62,0.00012417,2]
[361157945,1747312260758,-400.0,0.00012417,2]
[361157946,1747312260767,-400.0,0.00012417,2]
[361157947,1747312260777,-896.17,0.00012417,2]
[361157948,1747312260786,-3422.62,0.00012417,2]
[361157949,1747312260795,-400.0,0.00012417,2]
[361157950,1747312260805,-400.0,0.00012417,2]
[361157951,1747312260815,-1508.16,0.00012417,2]
[361157952,1747312260824,-400.0,0.00012417,2]
[361157953,1747312260834,-400.0,0.00012417,2]
[361157954,1747312260844,-2309.39,0.00012417,2]
[361157955,1747312260853,-546.0,0.00012417,2]
[361157956,1747312260863,-521.69,0.00012417,2]
[361157957,1747312260872,-982.05,0.00012417,2]
[361157958,1747312260882,-499.46,0.00012417,2]
[361157959,1747312260892,-400.0,0.00012417,2]
[361157960,1747312260902,-2191.97,0.00012417,2]
[361157961,1747312260912,-957.61,0.00012417,2]
[361157962,1747312260922,-722.35,0.00012417,2]
[361157963,1747312260931,-400.0,0.00012417,2]
[361157964,1747312260941,-2080.12,0.00012417,2]
[361157965,1747312260952,-668.17,0.00012417,2]
[361157966,1747312260961,-400.0,0.00012417,2]
[361157967,1747312260972,-546.20547547,0.00012417,2]
[361157968,1747312260981,-400.0,0.00012417,2]
[361157969,1747312260990,-400.0,0.00012417,2]
[361157970,1747312261000,-1597.82,0.00012417,2]
[361157971,1747312261009,-1630.72,0.00012417,2]
[361157972,1747312261019,-400.0,0.00012417,2]
[361157973,1747312261028,-3843.82,0.00012417,2]
[361157974,1747312261037,-598.25,0.00012417,2]
[361157975,1747312261047,-1950.93,0.00012417,2]
[361157976,1747312261057,-457.12,0.00012417,2]
[361157977,1747312261066,-922.32,0.00012417,2]
[361157978,1747312261076,-10611.15,0.00012417,2]
[361157979,1747312261086,-400.0,0.00012417,2]
[361157980,1747312261099,-400.0,0.00012417,2]
[361157981,1747312261109,-400.0,0.00012417,2]
[361157982,1747312261119,-1108.85,0.00012417,2]
[361157983,1747312261129,-541.7,0.00012417,2]
[361157984,1747312261140,-501.52,0.00012417,2]
[361157985,1747312261149,-601.85,0.00012417,2]
[361157986,1747312261159,-589.76,0.00012417,2]
[361157987,1747312261168,-400.0,0.00012417,2]
[361157988,1747312261178,-29073.02,0.00012417,2]
[361157989,1747312261188,-622.13,0.00012417,2]
[361157990,1747312261197,-400.0,0.00012417,2]
[361157991,1747312261207,-3250.93,0.00012417,2]
[361157992,1747312261216,-676.29,0.00012417,2]
[361157993,1747312261226,-2267.04,0.00012417,2]
[361157994,1747312261236,-530.87,0.00012417,2]
[361157995,1747312261246,-420.88,0.00012417,2]
[361157996,1747312261256,-796.59,0.00012417,2]
[361157997,1747312261265,-151.0,0.00012418,2]
[361157998,1747312261275,-419.55,0.00012418,2]
[361157999,1747312261285,-400.0,0.00012418,2]
[361158000,1747312261295,-151.0,0.00012418,2]
[361158001,1747312261305,-400.0,0.00012418,2]
[361158002,1747312261314,-400.0,0.00012418,2]
[361158003,1747312261323,-400.0,0.00012418,2]
[361158004,1747312261333,-382.12,0.00012418,2]
[361158005,1747312261345,-151.0,0.00012418,2]
[361158006,1747312261355,-313.82768979,0.00012418,2]
[361158007,1747312261364,-400.0,0.00012418,2]
[361158008,1747312261374,-400.0,0.00012418,2]
[361158009,1747312261384,-448.46,0.00012418,2]
[361158010,1747312261394,-400.0,0.00012418,2]
[361158011,1747312261404,-400.0,0.00012418,2]
[361158012,1747312261413,-400.0,0.00012418,2]
[361158013,1747312261422,-400.0,0.00012418,2]
[361158014,1747312261431,-400.0,0.00012418,2]
[361158015,1747312261441,-400.0,0.00012418,2]
[361158016,1747312261450,-400.0,0.00012418,2]
[361158017,1747312261461,-400.0,0.00012418,2]
[361158018,1747312261475,-400.0,0.00012418,2]
[361158019,1747312261485,-572.49,0.00012418,2]
[361158020,1747312261494,-202.12,0.00012418,2]
[361158021,1747312261503,-400.0,0.00012418,2]
[361158022,1747312261512,-455.44,0.00012418,2]
[361158023,1747312261522,-545.88,0.00012418,2]
[361158024,1747312261532,-400.0,0.00012418,2]
[361158025,1747312261543,-400.0,0.00012418,2]
[361158026,1747312261552,-400.0,0.00012418,2]
[361158027,1747312261562,-151.0,0.00012418,2]
[361158028,1747312261572,-613.99,0.00012418,2]
[361158029,1747312261581,-400.0,0.00012418,2]
[361158030,1747312261590,-400.0,0.00012418,2]
[361158031,1747312261602,-559.8,0.00012418,2]
[361158032,1747312261614,-7018.63,0.00012418,2]
[361158033,1747312261623,-472.72,0.00012418,2]
[361158034,1747312261633,-1647.57,0.00012418,2]
[361158035,1747312261643,-400.0,0.00012418,2]
[361158036,1747312261652,-400.0,0.00012418,2]
[361158037,1747312261661,-400.0,0.00012418,2]
[361158038,1747312261671,-582.36,0.00012418,2]
[361158039,1747312261680,-400.0,0.00012418,2]
[361158040,1747312261690,-1273.86,0.00012418,2]
[361158041,1747312261700,-400.0,0.00012418,2]
[361158042,1747312261710,-707.6,0.00012418,2]
[361158043,1747312261720,-400.0,0.00012418,2]
[361158044,1747312261730,-400.0,0.00012418,2]
[361158045,1747312261740,-400.0,0.00012418,2]
[361158046,1747312261749,-847.58,0.00012418,2]
[361158047,1747312261759,-400.0,0.00012418,2]
[361158048,1747312261769,-532.14,0.00012418,2]
[361158049,1747312261778,-400.0,0.00012418,2]
[361158050,1747312261788,-400.0,0.00012418,2]
[361158051,1747312261798,-355.27,0.00012418,2]
[361158052,1747312261808,-504.34,0.00012418,2]
[361158053,1747312261817,-365.87284186,0.00012418,2]
[361158054,1747312261827,-444.38842657,0.00012418,2]
[361158055,1747312261836,-539.45,0.00012418,2]
[361158056,1747312261849,-400.0,0.00012418,2]
[361158057,1747312261859,-400.0,0.00012418,2]
[361158058,1747312261868,-400.0,0.00012418,2]
[361158059,1747312261878,-400.0,0.00012418,2]
[361158060,1747312261888,-400.0,0.00012418,2]
[361158061,1747312261898,-672.34,0.00012418,2]
[361158062,1747312261908,-428.01853873,0.00012418,2]
[361158063,1747312261917,-400.0,0.00012418,2]
[361158064,1747312261927,-372.90004533,0.00012418,2]
[361158065,1747312262115,-400.0,0.00012418,2]
[361158066,1747312262146,-400.0,0.00012418,2]
[361158067,1747312262156,-400.0,0.00012418,2]
[361158068,1747312262166,-300.06,0.00012447,2]
[361158069,1747312262175,-304.06,0.00012451,2]
[361158070,1747312262186,-185.920016,0.00012467,2]
[361158071,1747312262197,-152.883547,0.00012467,2]
[361158072,1747312262207,-4583.82785248,0.00012469,2]
[361158073,1747312262216,-400.0,0.00012483,2]
[361158074,1747312262225,-215.0738,0.00012496,2]
[361158075,1747312262235,-150.0,0.00012499,2]
[361158076,1747312262245,-150.0,0.00012499,2]
[361158077,1747312262255,-166.39825689,0.00012499,2]
[361158078,1747312262266,-1000.0,0.000125,2]
[361158079,1747312262275,-826.96,0.00012503,2]
[361158080,1747312262286,-400.0,0.00012503,2]
[361158081,1747312262296,-400.0,0.00012503,2]
[361158082,1747312262306,-1048.33,0.00012503,2]
[361158083,1747312262316,-400.0,0.00012503,2]
[361158084,1747312262326,-400.0,0.00012503,2]
[361158085,1747312262336,-400.0,0.00012503,2]
[361158086,1747312262349,-423.63,0.00012503,2]
[361158087,1747312262359,-535.8,0.00012503,2]
[361158088,1747312262369,-544.54708563,0.00012503,2]
[361158089,1747312262380,-1990.2,0.00012503,2]
[361158090,1747312262390,-566.87,0.00012503,2]
[361158091,1747312262400,-1000.0,0.00012521,2]
[361158092,1747312262410,-151.0,0.00012535,2]
[361158093,1747312262420,-187.557083,0.00012535,2]
[361158094,1747312262431,-400.0,0.00012535,2]
[361158095,1747312262441,-400.0,0.00012535,2]
[361158096,1747312262451,-572.39,0.00012535,2]
[361158097,1747312262462,-350.08,0.00012535,2]
[361158098,1747312262477,-400.0,0.00012535,2]
[361158099,1747312262488,-400.0,0.00012535,2]
[361158100,1747312262497,-400.0,0.00012535,2]
[361158101,1747312262508,-160.88,0.00012535,2]
[361158102,1747312262518,-400.0,0.00012535,2]
[361158103,1747312262528,-475.17,0.00012535,2]
[361158104,1747312262538,-427.86,0.00012535,2]
[361158105,1747312262548,-400.0,0.00012535,2]
[361158106,1747312262558,-531.85,0.00012535,2]
[361158107,1747312262568,-400.0,0.00012535,2]
[361158108,1747312262578,-472.87,0.00012535,2]
[361158109,1747312262587,-800.26,0.00012535,2]
[361158110,1747312262601,-400.0,0.00012535,2]
[361158111,1747312262611,-527.61,0.00012535,2]
[361158112,1747312262621,-938.56,0.00012535,2]
[361158113,1747312262631,-400.0,0.00012535,2]
[361158114,1747312262641,-542.45,0.00012535,2]
[361158115,1747312262651,-400.0,0.00012535,2]
[361158116,1747312262660,-448.35,0.00012535,2]
[361158117,1747312262670,-515.02,0.00012535,2]
[361158118,1747312262680,-920.05,0.00012535,2]
[361158119,1747312262691,-619.27,0.00012535,2]
[361158120,1747312262700,-546.2,0.00012535,2]
[361158121,1747312262709,-400.0,0.00012535,2]
[361158122,1747312262720,-400.0,0.00012535,2]
[361158123,1747312262730,-400.87,0.00012535,2]
[361158124,1747312262740,-400.0,0.00012535,2]
[361158125,1747312262751,-400.0,0.00012535,2]
[361158126,1747312262762,-400.0,0.00012535,2]
[361158127,1747312262773,-457.69,0.00012535,2]
[361158128,1747312262784,-704.72,0.00012535,2]
[361158129,1747312262795,-450.0,0.00012535,2]
[361158130,1747312262807,-640.67,0.00012535,2]
[361158131,1747312262817,-400.0,0.00012535,2]